[Event "Titled Tuesday Blitz October 31 Early 2023"]
[White "Hoang, Thi Bao Tram"]
[Black "Manon-og, Ramon Jr."]
[WhiteFideId "12401102"]
[BlackFideId "5200776"]
[WhiteElo "2588"]
[BlackElo "2337"]
[Result "1-0"]
[Round "3"]
[TimeControl "180+1"]
[Date "2023.10.31"]
[WhiteClock "0:00:53"]
[BlackClock "0:00:00"]
[Board "116"]

1. d4 {[%clk 0:03:00]}  Nf6 {[%clk 0:02:57]} 2. c4 {[%clk 0:03:00]}  g6 {[%clk 0:02:56]} 3. g3 {[%clk 0:02:59]}  d5 {[%clk 0:02:56]} 4. Bg2 {[%clk 0:02:59]}  Bg7 {[%clk 0:02:56]} 5. Nf3 {[%clk 0:02:57]}  O-O {[%clk 0:02:56]} 6. cxd5 {[%clk 0:02:51]}  Nxd5 {[%clk 0:02:56]} 7. O-O {[%clk 0:02:52]}  Nc6 {[%clk 0:02:53]} 8. e3 {[%clk 0:02:50]}  Bg4 {[%clk 0:02:52]} 9. h3 {[%clk 0:02:48]}  Bf5 {[%clk 0:02:52]} 10. Nc3 {[%clk 0:02:47]}  Nxc3 {[%clk 0:02:47]} 11. bxc3 {[%clk 0:02:47]}  Qd7 {[%clk 0:02:45]} 12. Kh2 {[%clk 0:02:45]}  Be4 {[%clk 0:02:43]} 13. Ne5 {[%clk 0:02:43]}  Nxe5 {[%clk 0:02:39]} 14. Bxe4 {[%clk 0:02:44]}  Nc4 {[%clk 0:02:34]} 15. Bxb7 {[%clk 0:02:40]}  Rab8 {[%clk 0:02:29]} 16. Bg2 {[%clk 0:02:40]}  Rfd8 {[%clk 0:02:20]} 17. Qe2 {[%clk 0:02:39]}  Qa4 {[%clk 0:02:20]} 18. e4 {[%clk 0:02:34]}  c5 {[%clk 0:02:16]} 19. Bg5 {[%clk 0:02:22]}  cxd4 {[%clk 0:02:04]} 20. cxd4 {[%clk 0:02:17]}  Rxd4 {[%clk 0:01:59]} 21. Bxe7 {[%clk 0:02:04]}  Rd2 {[%clk 0:01:55]} 22. Qf3 {[%clk 0:01:56]}  Bxa1 {[%clk 0:01:31]} 23. Rxa1 {[%clk 0:01:57]}  Qd7 {[%clk 0:01:20]} 24. Bf6 {[%clk 0:01:51]}  Qe6 {[%clk 0:01:11]} 25. Rc1 {[%clk 0:01:47]}  Rxa2 {[%clk 0:00:59]} 26. Qf4 {[%clk 0:01:42]}  Re8 {[%clk 0:00:54]} 27. h4 {[%clk 0:01:34]}  Re2 {[%clk 0:00:13]} 28. Kg1 {[%clk 0:01:19]}  Ne5 {[%clk 0:00:10]} 29. h5 {[%clk 0:01:07]}  Nd3 {[%clk 0:00:08]} 30. Qh4 {[%clk 0:00:53]}  Nxc1 {[%clk 0:00:00]} 31. e5 {[%clk 0:00:53]} 1-0


[Site "https://www.chess.com"]

[Event "Titled Tuesday Blitz October 31 Early 2023"]
[White "Omelja, Artem"]
[Black "Mesa Cruz, Juan Carlos"]
[WhiteFideId "14119846"]
[BlackFideId "6423400"]
[WhiteElo "2580"]
[BlackElo "2329"]
[Result "1-0"]
[Round "3"]
[TimeControl "180+1"]
[Date "2023.10.31"]
[WhiteClock "0:02:12"]
[BlackClock "0:01:22"]
[Board "118"]

1. e4 {[%clk 0:03:00]}  c5 {[%clk 0:02:58]} 2. Nf3 {[%clk 0:03:00]}  d6 {[%clk 0:02:58]} 3. d4 {[%clk 0:03:00]}  cxd4 {[%clk 0:02:59]} 4. Nxd4 {[%clk 0:03:01]}  Nf6 {[%clk 0:02:58]} 5. Nc3 {[%clk 0:03:01]}  a6 {[%clk 0:02:50]} 6. Be2 {[%clk 0:03:01]}  e5 {[%clk 0:02:47]} 7. Nb3 {[%clk 0:03:01]}  Be7 {[%clk 0:02:47]} 8. Be3 {[%clk 0:03:01]}  O-O {[%clk 0:02:47]} 9. g4 {[%clk 0:03:02]}  Be6 {[%clk 0:02:46]} 10. g5 {[%clk 0:03:01]}  Ne8 {[%clk 0:02:46]} 11. h4 {[%clk 0:03:01]}  Nd7 {[%clk 0:02:45]} 12. Bg4 {[%clk 0:03:00]}  Nb6 {[%clk 0:02:44]} 13. Bxe6 {[%clk 0:02:54]}  fxe6 {[%clk 0:02:44]} 14. Qg4 {[%clk 0:02:54]}  Kh8 {[%clk 0:02:22]} 15. Qxe6 {[%clk 0:02:50]}  Rc8 {[%clk 0:02:22]} 16. O-O-O {[%clk 0:02:38]}  Nc4 {[%clk 0:02:05]} 17. Nd5 {[%clk 0:02:33]}  Nxe3 {[%clk 0:01:54]} 18. fxe3 {[%clk 0:02:29]}  Rf2 {[%clk 0:01:40]} 19. Rd2 {[%clk 0:02:26]}  Rxd2 {[%clk 0:01:39]} 20. Nxd2 {[%clk 0:02:27]}  Bf8 {[%clk 0:01:39]} 21. Rf1 {[%clk 0:02:27]}  Nc7 {[%clk 0:01:39]} 22. Qf7 {[%clk 0:02:22]}  Nxd5 {[%clk 0:01:35]} 23. exd5 {[%clk 0:02:23]}  Qe8 {[%clk 0:01:31]} 24. Qxe8 {[%clk 0:02:19]}  Rxe8 {[%clk 0:01:30]} 25. Rf7 {[%clk 0:02:19]}  Rb8 {[%clk 0:01:29]} 26. Ne4 {[%clk 0:02:19]}  Kg8 {[%clk 0:01:29]} 27. Rd7 {[%clk 0:02:19]}  h6 {[%clk 0:01:25]} 28. gxh6 {[%clk 0:02:12]}  gxh6 {[%clk 0:01:22]} 29. Nf6+ {[%clk 0:02:12]} 1-0


[Site "https://www.chess.com"]

[Event "Titled Tuesday Blitz October 31 Early 2023"]
[White "chessculator16"]
[Black "Gurevich, Dmitry"]
[BlackFideId "2000407"]
[WhiteElo "2326"]
[BlackElo "2578"]
[Result "1-0"]
[Round "3"]
[TimeControl "180+1"]
[Date "2023.10.31"]
[WhiteClock "0:01:42"]
[BlackClock "0:00:01"]
[Board "119"]

1. d4 {[%clk 0:03:00]}  d5 {[%clk 0:02:59]} 2. c4 {[%clk 0:03:01]}  e6 {[%clk 0:02:59]} 3. Nc3 {[%clk 0:03:01]}  a6 {[%clk 0:02:59]} 4. cxd5 {[%clk 0:03:01]}  exd5 {[%clk 0:02:58]} 5. Bf4 {[%clk 0:03:01]}  Nf6 {[%clk 0:02:53]} 6. e3 {[%clk 0:03:01]}  Bd6 {[%clk 0:02:46]} 7. Bg3 {[%clk 0:03:00]}  O-O {[%clk 0:02:39]} 8. Bd3 {[%clk 0:03:00]}  c5 {[%clk 0:02:29]} 9. dxc5 {[%clk 0:02:56]}  Bxc5 {[%clk 0:02:29]} 10. Nf3 {[%clk 0:02:56]}  Nc6 {[%clk 0:02:28]} 11. O-O {[%clk 0:02:56]}  Bg4 {[%clk 0:02:24]} 12. h3 {[%clk 0:02:48]}  Bh5 {[%clk 0:02:23]} 13. Be2 {[%clk 0:02:48]}  Bg6 {[%clk 0:02:17]} 14. Rc1 {[%clk 0:02:45]}  d4 {[%clk 0:02:15]} 15. exd4 {[%clk 0:02:41]}  Nxd4 {[%clk 0:02:15]} 16. Nxd4 {[%clk 0:02:39]}  Bxd4 {[%clk 0:02:12]} 17. Qb3 {[%clk 0:02:39]}  Qb6 {[%clk 0:02:04]} 18. Qxb6 {[%clk 0:02:38]}  Bxb6 {[%clk 0:02:03]} 19. Na4 {[%clk 0:02:38]}  Bd4 {[%clk 0:01:44]} 20. Rfd1 {[%clk 0:02:37]}  Rad8 {[%clk 0:01:36]} 21. Bh4 {[%clk 0:02:30]}  b5 {[%clk 0:01:30]} 22. Nc3 {[%clk 0:02:29]}  Rd7 {[%clk 0:01:10]} 23. Bxf6 {[%clk 0:02:28]}  gxf6 {[%clk 0:01:08]} 24. Bg4 {[%clk 0:02:23]}  f5 {[%clk 0:01:04]} 25. Bf3 {[%clk 0:02:23]}  Rfd8 {[%clk 0:01:04]} 26. b3 {[%clk 0:02:16]}  Kg7 {[%clk 0:00:51]} 27. Ne2 {[%clk 0:02:15]}  Bb2 {[%clk 0:00:45]} 28. Rxd7 {[%clk 0:02:12]}  Rxd7 {[%clk 0:00:44]} 29. Rc6 {[%clk 0:02:12]}  a5 {[%clk 0:00:43]} 30. Rc5 {[%clk 0:02:10]}  b4 {[%clk 0:00:37]} 31. Rxa5 {[%clk 0:02:10]}  Rd2 {[%clk 0:00:36]} 32. Rb5 {[%clk 0:02:07]}  Ba3 {[%clk 0:00:33]} 33. Nf4 {[%clk 0:01:57]}  Rxa2 {[%clk 0:00:32]} 34. h4 {[%clk 0:01:56]}  h6 {[%clk 0:00:27]} 35. h5 {[%clk 0:01:55]}  Bh7 {[%clk 0:00:27]} 36. Rb7 {[%clk 0:01:55]}  Rb2 {[%clk 0:00:25]} 37. Bd5 {[%clk 0:01:55]}  Bg8 {[%clk 0:00:24]} 38. Ne6+ {[%clk 0:01:52]}  Kf6 {[%clk 0:00:23]} 39. Nc5 {[%clk 0:01:51]}  Rd2 {[%clk 0:00:20]} 40. Bf3 {[%clk 0:01:49]}  Rc2 {[%clk 0:00:16]} 41. Rb6+ {[%clk 0:01:49]}  Kg7 {[%clk 0:00:14]} 42. Rb5 {[%clk 0:01:48]}  Rc3 {[%clk 0:00:12]} 43. Bd5 {[%clk 0:01:47]}  Bc1 {[%clk 0:00:08]} 44. Bc4 {[%clk 0:01:44]}  Bf4 {[%clk 0:00:06]} 45. g3 {[%clk 0:01:44]}  Bd6 {[%clk 0:00:06]} 46. Nb7 {[%clk 0:01:43]}  Be7 {[%clk 0:00:06]} 47. Rxf5 {[%clk 0:01:43]}  Bf6 {[%clk 0:00:05]} 48. Nd6 {[%clk 0:01:42]}  Bd4 {[%clk 0:00:04]} 49. Ne8+ {[%clk 0:01:41]}  Kf8 {[%clk 0:00:04]} 50. Nc7 {[%clk 0:01:41]}  Rc2 {[%clk 0:00:03]} 51. Ne6+ {[%clk 0:01:41]}  Ke7 {[%clk 0:00:01]} 52. Nxd4 {[%clk 0:01:42]} 1-0


[Site "https://www.chess.com"]

[Event "Titled Tuesday Blitz October 31 Early 2023"]
[White "Gontcharov, Vladislav"]
[Black "Novikova, Anna"]
[WhiteFideId "4123492"]
[BlackFideId "4146794"]
[WhiteElo "2571"]
[BlackElo "2321"]
[Result "1-0"]
[Round "3"]
[TimeControl "180+1"]
[Date "2023.10.31"]
[WhiteClock "0:00:16"]
[BlackClock "0:00:07"]
[Board "120"]

1. d4 {[%clk 0:02:46]}  Nf6 {[%clk 0:02:55]} 2. c4 {[%clk 0:02:45]}  g6 {[%clk 0:02:56]} 3. Nc3 {[%clk 0:02:44]}  Bg7 {[%clk 0:02:54]} 4. Nf3 {[%clk 0:02:42]}  O-O {[%clk 0:02:54]} 5. Bg5 {[%clk 0:02:41]}  d6 {[%clk 0:02:51]} 6. e3 {[%clk 0:02:41]}  Nbd7 {[%clk 0:02:46]} 7. Be2 {[%clk 0:02:40]}  e5 {[%clk 0:01:36]} 8. Qc2 {[%clk 0:02:39]}  Re8 {[%clk 0:01:30]} 9. Rd1 {[%clk 0:02:37]}  h6 {[%clk 0:01:15]} 10. Bh4 {[%clk 0:02:36]}  g5 {[%clk 0:01:15]} 11. dxe5 {[%clk 0:02:19]}  Nxe5 {[%clk 0:01:13]} 12. Nxe5 {[%clk 0:02:11]}  Rxe5 {[%clk 0:01:14]} 13. Bg3 {[%clk 0:02:11]}  Re8 {[%clk 0:01:14]} 14. O-O {[%clk 0:02:04]}  a5 {[%clk 0:01:07]} 15. Bf3 {[%clk 0:01:51]}  Nd7 {[%clk 0:00:58]} 16. Nb5 {[%clk 0:01:44]}  Ne5 {[%clk 0:00:47]} 17. c5 {[%clk 0:01:17]}  Nxf3+ {[%clk 0:00:38]} 18. gxf3 {[%clk 0:01:15]}  Bh3 {[%clk 0:00:39]} 19. cxd6 {[%clk 0:00:53]}  cxd6 {[%clk 0:00:36]} 20. Rxd6 {[%clk 0:00:48]}  Qc8 {[%clk 0:00:35]} 21. Qxc8 {[%clk 0:00:47]}  Raxc8 {[%clk 0:00:35]} 22. Rfd1 {[%clk 0:00:42]}  Bxb2 {[%clk 0:00:34]} 23. Rxh6 {[%clk 0:00:39]}  g4 {[%clk 0:00:31]} 24. Nd6 {[%clk 0:00:38]}  Red8 {[%clk 0:00:22]} 25. Rb1 {[%clk 0:00:37]}  Rc2 {[%clk 0:00:21]} 26. fxg4 {[%clk 0:00:31]}  Bxg4 {[%clk 0:00:21]} 27. Rh4 {[%clk 0:00:30]}  Rxd6 {[%clk 0:00:19]} 28. Bxd6 {[%clk 0:00:26]}  Bf5 {[%clk 0:00:17]} 29. Rf4 {[%clk 0:00:20]}  Bg6 {[%clk 0:00:15]} 30. a4 {[%clk 0:00:19]}  Rc6 {[%clk 0:00:13]} 31. Rd1 {[%clk 0:00:18]}  Bc2 {[%clk 0:00:12]} 32. Rd2 {[%clk 0:00:16]}  Bc1 {[%clk 0:00:10]} 33. Rd5 {[%clk 0:00:16]}  Bb3 {[%clk 0:00:09]} 34. Rg5+ {[%clk 0:00:16]}  Kh7 {[%clk 0:00:07]} 35. Rh4# {[%clk 0:00:16]} 1-0


[Site "https://www.chess.com"]

[Event "Titled Tuesday Blitz October 31 Early 2023"]
[White "StiffMaster1"]
[Black "Morrison, Graham"]
[BlackFideId "2400090"]
[WhiteElo "2566"]
[BlackElo "2318"]
[Result "1-0"]
[Round "3"]
[TimeControl "180+1"]
[Date "2023.10.31"]
[WhiteClock "0:00:03"]
[BlackClock "0:00:00"]
[Board "122"]

1. e4 {[%clk 0:03:00]}  c6 {[%clk 0:02:59]} 2. d4 {[%clk 0:03:00]}  d5 {[%clk 0:02:58]} 3. Nd2 {[%clk 0:03:00]}  dxe4 {[%clk 0:02:57]} 4. Nxe4 {[%clk 0:03:01]}  Nf6 {[%clk 0:02:56]} 5. Nxf6+ {[%clk 0:02:59]}  exf6 {[%clk 0:02:56]} 6. c3 {[%clk 0:03:00]}  Bd6 {[%clk 0:02:54]} 7. Bd3 {[%clk 0:03:00]}  O-O {[%clk 0:02:53]} 8. Qc2 {[%clk 0:03:01]}  Re8+ {[%clk 0:02:51]} 9. Ne2 {[%clk 0:03:01]}  h5 {[%clk 0:02:50]} 10. Be3 {[%clk 0:03:02]}  Nd7 {[%clk 0:02:48]} 11. O-O-O {[%clk 0:03:03]}  Nf8 {[%clk 0:02:45]} 12. Nf4 {[%clk 0:02:56]}  h4 {[%clk 0:02:43]} 13. g3 {[%clk 0:02:50]}  Bg4 {[%clk 0:02:41]} 14. Rde1 {[%clk 0:02:50]}  Ne6 {[%clk 0:02:38]} 15. Nxe6 {[%clk 0:02:44]}  Bxe6 {[%clk 0:02:28]} 16. gxh4 {[%clk 0:02:33]}  Qa5 {[%clk 0:02:25]} 17. a3 {[%clk 0:02:31]}  Qh5 {[%clk 0:02:13]} 18. Rhg1 {[%clk 0:02:08]}  Qxh4 {[%clk 0:02:09]} 19. Bf5 {[%clk 0:02:03]}  Rad8 {[%clk 0:01:57]} 20. Bxe6 {[%clk 0:02:01]}  Rxe6 {[%clk 0:01:55]} 21. Qf5 {[%clk 0:01:58]}  Rde8 {[%clk 0:01:49]} 22. Rg4 {[%clk 0:01:53]}  Qh7 {[%clk 0:01:40]} 23. Qf3 {[%clk 0:01:51]}  f5 {[%clk 0:01:37]} 24. Rgg1 {[%clk 0:01:39]}  f4 {[%clk 0:01:34]} 25. Bd2 {[%clk 0:01:38]}  Rxe1+ {[%clk 0:01:32]} 26. Bxe1 {[%clk 0:01:35]}  Qe4 {[%clk 0:01:19]} 27. Qg4 {[%clk 0:01:05]}  Bf8 {[%clk 0:01:18]} 28. Bd2 {[%clk 0:01:03]}  f3 {[%clk 0:01:06]} 29. Be3 {[%clk 0:01:00]}  Qxg4 {[%clk 0:01:03]} 30. Rxg4 {[%clk 0:01:01]}  Re6 {[%clk 0:00:56]} 31. Rf4 {[%clk 0:00:57]}  Bd6 {[%clk 0:00:55]} 32. Rxf3 {[%clk 0:00:56]}  Bxh2 {[%clk 0:00:54]} 33. Kd2 {[%clk 0:00:56]}  Kf8 {[%clk 0:00:51]} 34. Kd3 {[%clk 0:00:56]}  Ke7 {[%clk 0:00:50]} 35. c4 {[%clk 0:00:50]}  Bd6 {[%clk 0:00:48]} 36. Rh3 {[%clk 0:00:40]}  Kd7 {[%clk 0:00:45]} 37. d5 {[%clk 0:00:23]}  cxd5 {[%clk 0:00:45]} 38. cxd5 {[%clk 0:00:21]}  Rg6 {[%clk 0:00:44]} 39. Bxa7 {[%clk 0:00:20]}  Rg4 {[%clk 0:00:40]} 40. Be3 {[%clk 0:00:19]}  Be5 {[%clk 0:00:39]} 41. b4 {[%clk 0:00:17]}  Kd6 {[%clk 0:00:34]} 42. Rh8 {[%clk 0:00:13]}  Kxd5 {[%clk 0:00:33]} 43. Rf8 {[%clk 0:00:13]}  Ke6 {[%clk 0:00:32]} 44. Rc8 {[%clk 0:00:13]}  Bd6 {[%clk 0:00:30]} 45. Ra8 {[%clk 0:00:12]}  f5 {[%clk 0:00:27]} 46. Ra7 {[%clk 0:00:12]}  b5 {[%clk 0:00:26]} 47. Rb7 {[%clk 0:00:12]}  f4 {[%clk 0:00:25]} 48. Bd4 {[%clk 0:00:12]}  Rg5 {[%clk 0:00:24]} 49. Bxg7 {[%clk 0:00:09]}  Rd5+ {[%clk 0:00:24]} 50. Ke4 {[%clk 0:00:08]}  Rd1 {[%clk 0:00:23]} 51. Rxb5 {[%clk 0:00:08]}  Ra1 {[%clk 0:00:22]} 52. Ra5 {[%clk 0:00:08]}  Ra2 {[%clk 0:00:20]} 53. Kf3 {[%clk 0:00:08]}  Kd7 {[%clk 0:00:18]} 54. Bd4 {[%clk 0:00:09]}  Kc6 {[%clk 0:00:17]} 55. Ra6+ {[%clk 0:00:07]}  Kd7 {[%clk 0:00:16]} 56. Bc5 {[%clk 0:00:06]}  Bxc5 {[%clk 0:00:16]} 57. bxc5 {[%clk 0:00:07]}  Rc2 {[%clk 0:00:15]} 58. Ra5 {[%clk 0:00:06]}  Kc6 {[%clk 0:00:15]} 59. a4 {[%clk 0:00:05]}  Kc7 {[%clk 0:00:00]} 60. Ra6 {[%clk 0:00:03]} 1-0


[Site "https://www.chess.com"]

[Event "Titled Tuesday Blitz October 31 Early 2023"]
[White "Antonio, Jorge Carlos"]
[Black "LeoLV10"]
[WhiteFideId "113190"]
[WhiteElo "2315"]
[BlackElo "2564"]
[Result "0-1"]
[Round "3"]
[TimeControl "180+1"]
[Date "2023.10.31"]
[WhiteClock "0:00:00"]
[BlackClock "0:00:03"]
[Board "124"]

1. d4 {[%clk 0:03:00]}  Nf6 {[%clk 0:02:52]} 2. Nf3 {[%clk 0:03:01]}  e6 {[%clk 0:02:51]} 3. Bf4 {[%clk 0:02:59]}  d5 {[%clk 0:02:50]} 4. e3 {[%clk 0:02:59]}  Bd6 {[%clk 0:02:50]} 5. Bxd6 {[%clk 0:02:58]}  Qxd6 {[%clk 0:02:51]} 6. c4 {[%clk 0:02:58]}  c5 {[%clk 0:02:48]} 7. Nc3 {[%clk 0:02:55]}  Nbd7 {[%clk 0:02:48]} 8. cxd5 {[%clk 0:02:55]}  exd5 {[%clk 0:02:45]} 9. Bb5 {[%clk 0:02:51]}  O-O {[%clk 0:02:44]} 10. Bxd7 {[%clk 0:02:47]}  Bxd7 {[%clk 0:02:42]} 11. O-O {[%clk 0:02:47]}  b6 {[%clk 0:02:39]} 12. Rc1 {[%clk 0:02:39]}  Bg4 {[%clk 0:02:34]} 13. h3 {[%clk 0:02:38]}  Bxf3 {[%clk 0:02:32]} 14. Qxf3 {[%clk 0:02:37]}  Rad8 {[%clk 0:02:32]} 15. Rfd1 {[%clk 0:02:30]}  Qe6 {[%clk 0:02:27]} 16. dxc5 {[%clk 0:02:21]}  bxc5 {[%clk 0:02:27]} 17. Ne2 {[%clk 0:02:08]}  Ne4 {[%clk 0:02:08]} 18. Nf4 {[%clk 0:02:05]}  Qe5 {[%clk 0:01:54]} 19. b3 {[%clk 0:01:42]}  Rfe8 {[%clk 0:01:32]} 20. Nd3 {[%clk 0:01:37]}  Qe7 {[%clk 0:01:32]} 21. Nf4 {[%clk 0:01:19]}  Qb7 {[%clk 0:01:12]} 22. Qg4 {[%clk 0:01:18]}  Rd6 {[%clk 0:01:06]} 23. h4 {[%clk 0:01:11]}  d4 {[%clk 0:00:54]} 24. f3 {[%clk 0:01:01]}  Nf6 {[%clk 0:00:49]} 25. Qg5 {[%clk 0:00:52]}  Nd5 {[%clk 0:00:33]} 26. e4 {[%clk 0:00:23]}  h6 {[%clk 0:00:29]} 27. Qg4 {[%clk 0:00:19]}  Ne3 {[%clk 0:00:28]} 28. Qg3 {[%clk 0:00:17]}  Nxd1 {[%clk 0:00:27]} 29. Rxd1 {[%clk 0:00:17]}  Rf6 {[%clk 0:00:21]} 30. Nd5 {[%clk 0:00:16]}  Rg6 {[%clk 0:00:20]} 31. Qf2 {[%clk 0:00:16]}  h5 {[%clk 0:00:16]} 32. Qd2 {[%clk 0:00:16]}  Qd7 {[%clk 0:00:14]} 33. Qd3 {[%clk 0:00:16]}  Qd8 {[%clk 0:00:14]} 34. Rc1 {[%clk 0:00:16]}  Qxh4 {[%clk 0:00:14]} 35. Rxc5 {[%clk 0:00:14]}  Qg3 {[%clk 0:00:14]} 36. Qd2 {[%clk 0:00:12]}  h4 {[%clk 0:00:13]} 37. f4 {[%clk 0:00:09]}  h3 {[%clk 0:00:12]} 38. f5 {[%clk 0:00:10]}  Qxg2+ {[%clk 0:00:12]} 39. Qxg2 {[%clk 0:00:10]}  Rxg2+ {[%clk 0:00:13]} 40. Kf1 {[%clk 0:00:11]}  Rxe4 {[%clk 0:00:13]} 41. f6 {[%clk 0:00:09]}  Re5 {[%clk 0:00:11]} 42. Ne7+ {[%clk 0:00:07]}  Kh7 {[%clk 0:00:06]} 43. Rxe5 {[%clk 0:00:06]}  gxf6 {[%clk 0:00:06]} 44. Rd5 {[%clk 0:00:06]}  Rg4 {[%clk 0:00:02]} 45. Nf5 {[%clk 0:00:05]}  h2 {[%clk 0:00:02]} 46. Ng3 {[%clk 0:00:00]}  Rxg3 {[%clk 0:00:03]} 0-1


[Site "https://www.chess.com"]

[Event "Titled Tuesday Blitz October 31 Early 2023"]
[White "alfianasybullina"]
[Black "Wartiovaara, Oliver"]
[BlackFideId "513024"]
[WhiteElo "2285"]
[BlackElo "2561"]
[Result "1/2-1/2"]
[Round "3"]
[TimeControl "180+1"]
[Date "2023.10.31"]
[WhiteClock "0:00:17"]
[BlackClock "0:00:26"]
[Board "125"]

1. d4 {[%clk 0:03:00]}  c5 {[%clk 0:02:56]} 2. d5 {[%clk 0:02:56]}  e5 {[%clk 0:02:56]} 3. e4 {[%clk 0:02:55]}  d6 {[%clk 0:02:56]} 4. h3 {[%clk 0:02:54]}  Be7 {[%clk 0:02:56]} 5. Nf3 {[%clk 0:02:54]}  Nd7 {[%clk 0:02:54]} 6. Nc3 {[%clk 0:02:54]}  Nf8 {[%clk 0:02:55]} 7. Bb5+ {[%clk 0:02:52]}  Bd7 {[%clk 0:02:55]} 8. Bxd7+ {[%clk 0:02:52]}  Qxd7 {[%clk 0:02:56]} 9. a4 {[%clk 0:02:52]}  Ng6 {[%clk 0:02:55]} 10. g3 {[%clk 0:02:51]}  Nf6 {[%clk 0:02:54]} 11. Be3 {[%clk 0:02:47]}  O-O {[%clk 0:02:51]} 12. Qd3 {[%clk 0:02:40]}  a6 {[%clk 0:02:45]} 13. a5 {[%clk 0:02:37]}  Nh5 {[%clk 0:02:39]} 14. Na4 {[%clk 0:02:30]}  Bd8 {[%clk 0:02:35]} 15. Bd2 {[%clk 0:02:28]}  f5 {[%clk 0:02:31]} 16. Nb6 {[%clk 0:02:20]}  Bxb6 {[%clk 0:02:28]} 17. axb6 {[%clk 0:02:21]}  fxe4 {[%clk 0:02:21]} 18. Qxe4 {[%clk 0:02:21]}  Nf6 {[%clk 0:02:19]} 19. Qc4 {[%clk 0:02:12]}  Qf7 {[%clk 0:02:12]} 20. O-O-O {[%clk 0:02:08]}  Qxd5 {[%clk 0:02:07]} 21. Qxd5+ {[%clk 0:02:08]}  Nxd5 {[%clk 0:02:08]} 22. Ng5 {[%clk 0:01:52]}  Nxb6 {[%clk 0:02:05]} 23. Be3 {[%clk 0:01:51]}  Nc4 {[%clk 0:02:05]} 24. b3 {[%clk 0:01:39]}  Nxe3 {[%clk 0:02:04]} 25. fxe3 {[%clk 0:01:39]}  Rfd8 {[%clk 0:01:32]} 26. Ne6 {[%clk 0:01:38]}  Rd7 {[%clk 0:01:31]} 27. Nxc5 {[%clk 0:01:37]}  Rc7 {[%clk 0:01:22]} 28. Ne4 {[%clk 0:01:35]}  Rac8 {[%clk 0:01:19]} 29. Rh2 {[%clk 0:01:31]}  Rf8 {[%clk 0:01:10]} 30. Rxd6 {[%clk 0:01:24]}  Rf3 {[%clk 0:01:09]} 31. Re2 {[%clk 0:01:17]}  Nf8 {[%clk 0:01:00]} 32. Rd8 {[%clk 0:01:15]}  h6 {[%clk 0:00:55]} 33. Rf2 {[%clk 0:01:08]}  Rxf2 {[%clk 0:00:54]} 34. Nxf2 {[%clk 0:01:08]}  Kf7 {[%clk 0:00:53]} 35. Ne4 {[%clk 0:01:06]}  Ne6 {[%clk 0:00:51]} 36. Rd2 {[%clk 0:00:57]}  Ke7 {[%clk 0:00:50]} 37. Kb2 {[%clk 0:00:56]}  Rd7 {[%clk 0:00:46]} 38. Rxd7+ {[%clk 0:00:54]}  Kxd7 {[%clk 0:00:47]} 39. c4 {[%clk 0:00:53]}  Kc6 {[%clk 0:00:47]} 40. Kc3 {[%clk 0:00:52]}  Nc5 {[%clk 0:00:40]} 41. Nxc5 {[%clk 0:00:40]}  Kxc5 {[%clk 0:00:41]} 42. b4+ {[%clk 0:00:40]}  Kd6 {[%clk 0:00:39]} 43. e4 {[%clk 0:00:36]}  b6 {[%clk 0:00:37]} 44. Kb3 {[%clk 0:00:32]}  Kc6 {[%clk 0:00:30]} 45. Ka4 {[%clk 0:00:31]}  Kb7 {[%clk 0:00:30]} 46. Kb3 {[%clk 0:00:25]}  a5 {[%clk 0:00:30]} 47. Ka4 {[%clk 0:00:22]}  Ka6 {[%clk 0:00:30]} 48. bxa5 {[%clk 0:00:21]}  bxa5 {[%clk 0:00:30]} 49. c5 {[%clk 0:00:13]}  g6 {[%clk 0:00:30]} 50. h4 {[%clk 0:00:13]}  h5 {[%clk 0:00:30]} 51. c6 {[%clk 0:00:13]}  Kb6 {[%clk 0:00:30]} 52. c7 {[%clk 0:00:14]}  Kxc7 {[%clk 0:00:30]} 53. Kxa5 {[%clk 0:00:15]}  Kc6 {[%clk 0:00:24]} 54. Kb4 {[%clk 0:00:15]}  Kb6 {[%clk 0:00:24]} 55. Kc4 {[%clk 0:00:16]}  Kc6 {[%clk 0:00:25]} 56. Kb4 {[%clk 0:00:16]}  Kb6 {[%clk 0:00:26]} 57. Kc4 {[%clk 0:00:17]}  Kc6 {[%clk 0:00:26]} 58. Kb4 {[%clk 0:00:17]} 1/2-1/2


[Site "https://www.chess.com"]